[Event "French-ch U16-U18 2024"]
[Site "Agen"]
[Date "2024.04.14"]
[Round "1.7"]
[White "Lyandzberg, Anatoly"]
[Black "Breuil, Tristan"]
[Result "*"]
[ECO "B90"]
[WhiteElo "1877"]
[BlackElo "2281"]
[Annotator "RC"]
[PlyCount "26"]
[EventDate "2024.04.14"]
[EventType "swiss"]
[EventCountry "FRA"]
[SourceTitle "playchess.com"]
[Source "ChessBase"]
[SourceQuality "1"]
[TimeControl "5400+30"]

1. e4 {[%emt 0:00:06]} c5 {[%emt 0:00:44]} 2. Nf3 {[%emt 0:00:17]} d6 {[%emt 0:00:10]} 3. d4 {[%emt 0:00:40]} cxd4 {[%emt 0:00:09]} 4. Nxd4 {[%emt 0:00:07]} Nf6 {[%emt 0:00:07]} 5. Nc3 {[%emt 0:01:58]} a6 {[%emt 0:00:24]} 6. h3 {[%emt 0:01:57]} e5 {[%emt 0:00:15]} 7. Nde2 {[%emt 0:00:11]} h5 {[%emt 0:00:44]} 8. g3 {[%emt 0:09:28]} Be6 {[%emt 0:00:59]} 9. Bg2 {[%emt 0:02:14]} Nbd7 {[%emt 0:00:16]} 10. Bg5 {[%emt 0:07:36]} Be7 {[%emt 0:02:43]} 11. Nd5 {[%emt 0:08:55]} Nxd5 {[%emt 0:06:41]} 12. exd5 {[%emt 0:00:52]} Bf5 {[%emt 0:01:47]} 13. Be3 {[%emt 1:02:39]} Bg5 {[%emt 0:11:45]} *

[Event "French-ch U16-U18 2024"]
[Site "Agen"]
[Date "2024.04.14"]
[Round "1.7"]
[White "Kamel, Faris."]
[Black "Breuil, Tristan"]
[Result "0-1"]
[ECO "B90"]
[WhiteElo "1876"]
[BlackElo "2281"]
[Annotator "TA"]
[PlyCount "82"]
[EventDate "2024.04.14"]
[EventType "swiss"]
[EventCountry "FRA"]
[SourceTitle "playchess.com"]
[Source "ChessBase"]
[SourceQuality "1"]
[TimeControl "5400+30"]

{[%evp 12,82,9,18,33,7,24,16,33,16,22,-57,-44,-48,-56,-75,-73,-122,-129,-124,-98,-154,-155,-235,-235,-235,-247,-249,-225,-353,-356,-327,-351,-355,-248,-516,-498,-545,-553,-552,-516,-531,-543,-524,-545,-545,-554,-550,-515,-665,-627,-585,-531,-801,-756,-1634,-1543,-1232,-1462,-1632,-1502,-1290,-1111,-1125,-969,-29995,-29996,-29996,-29995,-29995,-29996,-29996,-29986]} 1. e4 {[%emt 0:00:06]} c5 {[%emt 0:00:44]} 2. Nf3 {[%emt 0:00:17]} d6 {[%emt 0:00:10]} 3. d4 {[%emt 0:00:40]} cxd4 {[%emt 0:00:09]} 4. Nxd4 {[%emt 0:00:07]} Nf6 {[%emt 0:00:07]} 5. Nc3 {[%emt 0:01:58]} a6 {[%emt 0:00:24]} 6. h3 {[%emt 0:01:57]} e5 {[%emt 0:00:15]} 7. Nde2 {[%emt 0:00:11]} h5 {[%emt 0:00:44]} 8. g3 {[%emt 0:09:28]} Be6 {[%emt 0:00:59]} 9. Bg2 {[%emt 0:02:14]} Nbd7 {[%emt 0:00:16] The position is equal.} 10. Bg5 {[%emt 0:07:36]} Be7 {[%emt 0:02:43]} 11. Nd5 {[%emt 0:08:55]} (11. a4 $11) 11... Nxd5 $1 $15 {[%emt 0:06:41]} 12. exd5 {[%emt 0:00:52]} Bf5 {[%emt 0:01:47]} (12... Bxg5 $6 13. dxe6 fxe6 14. Qxd6 $16 (14. Bxb7 Rb8 $17)) 13. Be3 {[%emt 0:02:04]} Bg5 {[%emt 0:11:45]} 14. f4 {[%emt 0:07:56]} (14. Bd2 $142) 14... exf4 $17 {[%emt 0:05:28]} 15. Nxf4 {[%emt 0:02:47]} Qe7 {[%emt 0:06:50]} 16. Kf2 {[%emt 0:02:17]} ({White should play} 16. Qe2) 16... Rc8 $36 {[%emt 0:08:17][%mdl 2048] Keeping White busy.} 17. Rc1 {[%emt 0:09:17]} (17. c3 $17) 17... Ne5 $19 {[%emt 0:06:22]} 18. Re1 {[%emt 0:05:31] [#]} h4 $1 {[%emt 0:13:49]} 19. g4 {[%emt 0:05:52]} Bxg4 {[%emt 0:06:38]} 20. hxg4 {[%emt 0:02:05] [#]} (20. Qd2 {was the only chance.} O-O 21. Nd3 Bxe3+ 22. Qxe3 Qf6+ 23. Kg1 Nf3+ 24. Bxf3 Bxf3 25. Qf2) 20... Qf6 $1 {[%emt 0:05:33]} 21. Qd2 {[%emt 0:09:45]} Rc4 {[%emt 0:03:11]} ({Weaker is} 21... Nxg4+ 22. Kg1 O-O (22... Qxb2 $2 {is the wrong capture.} 23. Bd4+ Kd7 24. Bxb2 $18) 23. Nh5 Bxe3+ 24. Qxe3 $17 (24. Rxe3 $2 {loses.} Qg5 $19)) 22. Kg1 {[%emt 0:05:16]} Rxf4 {[%emt 0:10:52]} 23. Rf1 $2 {[%emt 0:07:11]} (23. Qc3 {was called for.}) 23... Nc4 {[%emt 0:05:22]} 24. Qd3 {[%emt 0:04:29]} Rxf1+ {[%emt 0:00:48]} 25. Rxf1 {[%emt 0:00:10]} Bxe3+ {[%emt 0:00:09]} 26. Kh1 {[%emt 0:00:09]} Qd4 {[%emt 0:01:02]} 27. Qxd4 {[%emt 0:00:34]} Bxd4 {[%emt 0:00:02]} 28. Rf4 {[%emt 0:00:08]} h3 {[%emt 0:00:34]} 29. Bf1 {[%emt 0:01:45]} Ne3 {[%emt 0:01:05] ...Be5 is the strong threat.} 30. Bxa6 {[%emt 0:00:11]} bxa6 {[%emt 0:01:08]} 31. Rxd4 {[%emt 0:00:03][%mdl 4096] Endgame. KRN-KR} Kd7 {[%emt 0:00:24]} 32. c4 {[%emt 0:00:31]} Rh4 {[%emt 0:00:28]} 33. Re4 {[%emt 0:00:34]} Nxg4 {[%emt 0:00:27]} 34. Rf4 {[%emt 0:00:06] Inhibits Nf2+.} f6 {[%emt 0:00:21] Threatens to win with ...g5.} 35. b4 {[%emt 0:00:15]} g5 {[%emt 0:00:18]} 36. Rf3 {[%emt 0:00:14]} Ne5 {[%emt 0:00:45]} 37. Ra3 {[%emt 0:00:22]} Rxc4 {[%emt 0:00:38] ( -> ...g4)} 38. Rxa6 {[%emt 0:00:07]} Nf3 {[%emt 0:00:24][%cal Rc4c1] Black mates.} 39. Rc6 {[%emt 0:00:11]} Rxc6 {[%emt 0:00:10]} 40. dxc6+ {[%emt 0:00:03]} Kxc6 {[%emt 0:00:07]} 41. a4 {[%emt 0:00:08]} Nd4 {[%emt 0:00:09] White did not feel at home in the position after the opening.   Weighted Error Value: White=0.72/Black=0.12 (very precise) .  Mistake:       	White=6     	---        Inaccurate:     	White=2     	Black=1      OK:         	White=8     	Black=11     Best:        	White=1     	Black=4      Strong:       	---       	Black=3} 0-1

[Event "French-ch U16-U18 2024"]
[Site "Agen"]
[Date "2024.04.14"]
[Round "1.8"]
[White "Vallee, Louis"]
[Black "Greissler, Raphael"]
[Result "1-0"]
[ECO "D31"]
[WhiteElo "2270"]
[BlackElo "1875"]
[Annotator "TA"]
[PlyCount "57"]
[EventDate "2024.04.14"]
[EventType "swiss"]
[EventCountry "FRA"]
[SourceTitle "playchess.com"]
[Source "ChessBase"]
[SourceQuality "1"]
[TimeControl "5400+30"]

{[%evp 9,57,23,35,34,44,32,39,17,25,31,24,22,29,17,51,55,55,47,46,48,47,9,13,10,8,12,11,13,19,30,50,41,52,51,45,46,49,56,107,139,123,127,265,260,264,230,241,243,437,429]} 1. d4 {[%emt 0:00:07]} d5 {[%emt 0:00:31]} 2. c4 {[%emt 0:00:16]} e6 {[%emt 0:00:32]} 3. Nc3 {[%emt 0:01:00]} Bb4 {[%emt 0:01:19]} 4. cxd5 {[%emt 0:01:42]} exd5 {[%emt 0:03:28]} 5. Nf3 {[%emt 0:00:12]} h6 {[%emt 0:05:24]} 6. Bf4 {[%emt 0:05:01]} Nf6 {[%emt 0:03:04]} 7. e3 {[%emt 0:04:59]} O-O {[%emt 0:00:56]} 8. h3 {[%emt 0:07:31] White is slightly better.} Ne4 {[%emt 0:05:29]} 9. Rc1 {[%emt 0:05:54]} c6 {[%emt 0:06:39]} 10. Bd3 {[%emt 0:14:19]} Bf5 {[%emt 0:01:47]} 11. O-O {[%emt 0:01:16]} Nxc3 {[%emt 0:03:36]} 12. bxc3 {[%emt 0:00:17]} Bxd3 {[%emt 0:00:13]} 13. Qxd3 {[%emt 0:00:11]} Bd6 {[%emt 0:00:17]} 14. Bxd6 {[%emt 0:13:09]} Qxd6 {[%emt 0:00:18]} 15. e4 {[%emt 0:01:18]} dxe4 {[%emt 0:01:11]} 16. Qxe4 {[%emt 0:03:07]} Nd7 {[%emt 0:01:54]} 17. Rfe1 {[%emt 0:01:10][%cal Bf1e1,Be1e7,Be7a7][%mdl 32]} Nf6 {[%emt 0:04:52]} 18. Qe7 {[%emt 0:01:11]} Qxe7 {[%emt 0:00:21]} 19. Rxe7 {[%emt 0:00:07]} Rab8 {[%emt 0:00:59]} 20. Rb1 $1 {[%emt 0:03:10]} b5 $1 {[%emt 0:04:16]} (20... Rfe8 21. Rexb7 (21. Rbxb7 Rxb7 22. Rxb7 Ne4 $16) 21... Rxb7 22. Rxb7 $16) 21. Rxa7 {[%emt 0:00:46]} Ra8 {[%emt 0:02:53]} 22. Rc7 {[%emt 0:15:09]} Rxa2 {[%emt 0:03:37]} 23. Rxc6 {[%emt 0:00:21]} Ne4 {[%emt 0:01:46]} (23... Re8 $1 $14) 24. Rxb5 $16 {[%emt 0:01:04]} Rfa8 {[%emt 0:01:42]} 25. Re5 {[%emt 0:01:49]} f5 {[%emt 0:00:47] This move loses the game for Black.} (25... Nxf2 $16 26. d5 Nd3) 26. Rxf5 $18 {[%emt 0:03:27]} Rxf2 {[%emt 0:01:46]} 27. Re5 {[%emt 0:01:49]} Ra1+ {[%emt 0:05:03]} 28. Kh2 {[%emt 0:00:08]} Re2 {[%emt 0:02:33] [#]} (28... Raa2 {keeps fighting.} 29. Nh4 Rae2) 29. Rce6 {[%emt 0:01:51] Weighted Error Value: White=0.04 (flawless) /Black=0.22 (precise) .  Mistake:       	---       	Black=3      Inaccurate:     	White=1     	Black=1      OK:         	White=12    	Black=10     Best:        	White=3     	---        Strong:       	White=1     	Black=1} 1-0

[Event "French-ch U16-U18 2024"]
[Site "Agen"]
[Date "2024.04.14"]
[Round "1.9"]
[White "Greissler, Raphael"]
[Black "Zienkiewicz, Jan"]
[Result "*"]
[ECO "A57"]
[WhiteElo "1875"]
[BlackElo "2240"]
[Annotator "RC"]
[PlyCount "26"]
[EventDate "2024.04.14"]
[EventType "swiss"]
[EventCountry "FRA"]
[SourceTitle "playchess.com"]
[Source "ChessBase"]
[SourceQuality "1"]
[TimeControl "5400+30"]

1. d4 {[%emt 0:00:10]} Nf6 {[%emt 0:00:06]} 2. c4 {[%emt 0:00:06]} c5 {[%emt 0:00:40]} 3. d5 {[%emt 0:00:21]} b5 {[%emt 0:00:05]} 4. cxb5 {[%emt 0:02:04]} a6 {[%emt 0:00:56]} 5. e3 {[%emt 0:00:12]} d6 {[%emt 0:01:03]} 6. Nc3 {[%emt 0:04:11]} Nbd7 {[%emt 0:01:54]} 7. Nf3 {[%emt 0:03:53]} g6 {[%emt 0:00:58]} 8. a4 {[%emt 0:00:00]} Bg7 {[%emt 1:28:48]} 9. Be2 {[%emt 0:00:00]} O-O {[%emt 1:28:57]} 10. O-O {[%emt 0:00:00]} axb5 {[%emt 0:02:56]} 11. Bxb5 {[%emt 0:00:00]} Ba6 {[%emt 0:02:58]} 12. Bd2 {[%emt 0:00:00]} Ne8 {[%emt 0:05:46]} 13. Qe2 {[%emt 0:00:00]} Nc7 {[%emt 0:02:37]} *

[Event "French-ch U16-U18 2024"]
[Site "Agen"]
[Date "2024.04.14"]
[Round "1.9"]
[White "Duces-Akhverdoff, Gabriel"]
[Black "Zienkiewicz, Jan"]
[Result "1/2-1/2"]
[ECO "A57"]
[WhiteElo "1874"]
[BlackElo "2240"]
[Annotator "TA"]
[PlyCount "129"]
[EventDate "2024.04.14"]
[EventType "swiss"]
[EventCountry "FRA"]
[SourceTitle "playchess.com"]
[Source "ChessBase"]
[SourceQuality "1"]
[TimeControl "5400+30"]

{[%evp 21,129,72,73,27,68,33,50,45,91,14,117,23,22,22,52,46,39,40,93,106,133,144,172,178,171,173,169,181,178,171,188,175,239,237,269,256,225,204,318,296,327,335,308,258,350,291,443,272,451,273,350,0,447,0,467,253,330,288,493,360,420,279,350,282,397,240,563,449,695,689,647,315,477,239,485,339,331,244,244,225,269,244,269,263,305,305,302,299,266,0,285,0,272,273,235,58,39,34,33,38,33,29,43,31,20,0,20,17,22,0]} 1. d4 {[%emt 0:00:10]} Nf6 {[%emt 0:00:06]} 2. c4 {[%emt 0:00:06]} c5 {[%emt 0:00:40]} 3. d5 {[%emt 0:00:21]} b5 {[%emt 0:00:05]} 4. cxb5 {[%emt 0:02:04]} a6 {[%emt 0:00:56]} 5. e3 {[%emt 0:00:12]} d6 {[%emt 0:01:03]} 6. Nc3 {[%emt 0:04:11]} Nbd7 {[%emt 0:01:54]} 7. Nf3 {[%emt 1:26:56]} g6 {[%emt 0:00:58]} 8. a4 {[%emt 0:00:00]} Bg7 {[%emt 0:00:21]} 9. Be2 {[%emt 0:00:00]} O-O {[%emt 0:00:53]} 10. O-O {[%emt 0:00:00]} axb5 {[%emt 0:02:56]} 11. Bxb5 {[%emt 0:00:00]} Ba6 {[%emt 0:02:58]} 12. Bd2 {[%emt 0:00:00]} ({White should try} 12. Bxa6 $16 Rxa6 13. e4) 12... Ne8 {[%emt 0:05:46]} 13. Qe2 {[%emt 0:00:00] White is more active.} Nc7 {[%emt 0:02:37]} 14. e4 {[%emt 0:00:00] White is slightly better.} Nb6 {[%emt 0:07:25]} (14... Qb8 $14 {deserves consideration.}) 15. Bf4 {[%emt 0:00:00] Black is weak on the light squares} (15. Bxa6 $16 Nxa6 16. h3) 15... Ra7 {[%emt 0:13:07]} (15... Bxb5 $11 {remains equal.} 16. axb5 Qd7) 16. Rfd1 {[%emt 0:00:00]} (16. Bxa6 $16 Rxa6 17. a5) 16... Bxc3 {[%emt 0:08:31]} 17. Bxa6 {[%emt 0:00:00]} ({Reject} 17. bxc3 Nxa4 18. c4 (18. Rxa4 $2 Bxb5 19. c4 Bxa4 $19) 18... Nc3 $17) 17... Bg7 {[%emt 0:01:49]} 18. Bb5 {[%emt 0:00:00]} Nxb5 {[%emt 0:06:59]} 19. axb5 {[%emt 0:00:00]} Qa8 {[%emt 0:05:09]} ({Better is} 19... Qd7 $14) 20. Ra6 $16 {[%emt 0:00:00]} Rxa6 {[%emt 0:03:15]} 21. bxa6 {[%emt 0:00:00]} Rb8 {[%emt 0:01:09] [#]} 22. Ra1 {[%emt 0:00:00] Wards off Na4} Nc8 {[%emt 0:04:24]} 23. Ra2 {[%emt 0:00:00]} Na7 {[%emt 0:02:26]} 24. h3 {[%emt 0:00:00]} Rb6 {[%emt 0:04:07]} 25. Qd2 {[%emt 0:00:00]} Qb8 {[%emt 0:00:56][%cal Rg7b2]} 26. Bg5 {[%emt 0:00:00][%cal Bf4g5,Bg5d2,Bd2c3][%mdl 32]} Qc7 {[%emt 0:04:55]} (26... Bf8 $142 27. Qc2 Qc8) 27. Qa5 $18 {[%emt 0:00:00][%cal Og5e7] aiming for Bxe7!} Kf8 {[%emt 0:00:06]} 28. Bd2 {[%emt 0:00:00]} Qb8 {[%emt 0:01:59]} 29. Bc3 {[%emt 0:00:00]} f6 {[%emt 0:02:42]} (29... Rb5 $142 30. Qa4 Bxc3) 30. Nd2 {[%emt 0:00:13]} Rb5 {[%emt 0:01:10]} 31. Qa4 {[%emt 0:00:15]} Qc8 {[%emt 0:01:25]} 32. Nc4 {[%emt 0:01:19]} Kf7 {[%emt 0:00:30]} 33. Ra3 {[%emt 0:01:49]} Bh6 {[%emt 0:00:23]} (33... Kg8 $142 34. Qc2 Rb8) 34. Ra1 {[%emt 0:01:02]} Bg7 $2 {[%emt 0:01:31]} (34... Rb8 35. Qd1 Rb5) 35. Qc2 {[%emt 0:01:50]} Bh6 {[%emt 0:01:46]} 36. Qa4 {[%emt 0:04:55]} Bg7 $1 {[%emt 0:01:05]} 37. Ra3 {[%emt 0:01:25]} Bh6 $1 {[%emt 0:01:17]} 38. Qc2 {[%emt 0:00:09]} (38. Na5 $142 {[%cal Oa5c6] Nc6! is the strong threat.} Qxa6 39. e5 dxe5 40. Qh4) 38... Bg7 {[%emt 0:03:50]} 39. Qd1 {[%emt 0:00:06]} Bh6 $2 {[%emt 0:01:14]} (39... Rb8 40. Qg4 Ke8) 40. Qe2 {[%emt 0:00:32]} Rb8 {[%emt 0:01:15]} 41. Ra1 {[%emt 0:00:49][%cal Oc3f6]} Bg7 {[%emt 0:00:23]} 42. Qd1 {[%emt 0:01:24]} Bh6 {[%emt 0:00:24]} (42... Qd7 {keeps fighting.} 43. Qa4 Qe8) 43. Ba5 {[%emt 0:02:12]} Rb5 $2 {[%emt 0:03:32]} (43... Qxa6 44. Bc7 Qxc4 45. Bxb8 Nb5) 44. Bb6 {[%emt 0:00:00]} Qb8 {[%emt 0:00:09]} (44... Rb4 $142 45. Qe2 (45. Ra4 Rxc4 46. Rxc4 Qxa6 $11) 45... Nb5) 45. Bxa7 {[%emt 0:00:12]} Qxa7 {[%emt 0:00:00]} 46. Ra4 {[%emt 0:00:38]} (46. Na5 $142) 46... Bf4 {[%emt 0:00:20]} (46... Rb8 {was necessary.} 47. g3 Kg8) 47. Qa1 {[%emt 0:00:12]} (47. Qe2 $142 Rb4 48. Ra2) 47... h5 $2 {[%emt 0:00:34]} (47... Rb8 48. Qa2 Be5) 48. g3 {[%emt 0:00:23]} Be5 {[%emt 0:00:41]} 49. Nxe5+ {[%emt 0:00:11]} fxe5 {[%emt 0:00:37][%mdl 4096] Endgame. KQR-KQR} 50. Qa3 {[%emt 0:00:08]} Rb6 {[%emt 0:00:11]} 51. Kg2 {[%emt 0:00:35]} Ke8 {[%emt 0:00:04]} 52. Ra5 {[%emt 0:00:34]} Kd8 {[%emt 0:00:08]} 53. b3 {[%emt 0:00:46]} Rb4 {[%emt 0:00:45]} 54. Ra4 {[%emt 0:00:18]} Rb6 {[%emt 0:00:01]} 55. Ra5 {[%emt 0:00:26]} Rb4 $1 {[%emt 0:00:04]} 56. Ra4 {[%emt 0:00:17]} Rb6 {[%emt 0:00:03]} 57. Qa2 {[%emt 0:00:44]} Kc7 {[%emt 0:00:34]} 58. Ra3 $2 {[%emt 0:01:05]} (58. Ra5 $18) 58... Kb8 $14 {[%emt 0:00:54]} 59. Qe2 {[%emt 0:00:33] [#] Threatens to win with Qf3.} Qd7 $1 {[%emt 0:00:38]} 60. a7+ {[%emt 0:00:54]} Ka8 {[%emt 0:00:01]} 61. Qf3 {[%emt 0:00:06]} Qe8 {[%emt 0:00:25] Prevents Qf8} 62. Qc3 {[%emt 0:00:42]} Qb5 {[%emt 0:01:19]} 63. Qf3 {[%emt 0:00:17] The position is equal.} Qe8 {[%emt 0:00:09] Dodges Qf8} 64. Qd3 {[%emt 0:01:29]} Qd7 {[%emt 0:02:39]} 65. Qf3 {White really could win this.   Weighted Error Value: White=0.76/Black=0.51.  Missed win:     	White=1     	---        Mistake:       	White=3     	Black=12     Inaccurate:     	White=6     	Black=4      OK:         	White=11    	Black=9      Best:        	White=3     	Black=2      Strong:       	---       	Black=4} 1/2-1/2

[Event "French-ch U16-U18 2024"]
[Site "Agen"]
[Date "2024.04.14"]
[Round "1.10"]
[White "Trevisiol, Antoine"]
[Black "Duces-Akhverdoff, Gabriel"]
[Result "*"]
[ECO "D35"]
[WhiteElo "2235"]
[BlackElo "1874"]
[Annotator "RC"]
[PlyCount "25"]
[EventDate "2024.04.14"]
[EventType "swiss"]
[EventCountry "FRA"]
[SourceTitle "playchess.com"]
[Source "ChessBase"]
[SourceQuality "1"]
[TimeControl "5400+30"]

1. d4 {[%emt 0:00:05]} Nf6 {[%emt 0:00:25]} 2. c4 {[%emt 0:00:17]} e6 {[%emt 0:00:09]} 3. Nc3 {[%emt 0:00:16]} d5 {[%emt 0:00:26]} 4. cxd5 {[%emt 0:00:25]} exd5 {[%emt 0:00:03]} 5. Bg5 {[%emt 0:00:30]} Bb4 {[%emt 0:01:23]} 6. e3 {[%emt 0:07:10]} h6 {[%emt 0:02:17]} 7. Bh4 {[%emt 0:01:04]} O-O {[%emt 0:01:12]} 8. Bd3 {[%emt 0:01:24]} c5 {[%emt 0:01:47]} 9. Nge2 {[%emt 0:04:34]} c4 {[%emt 0:08:02]} 10. Bc2 {[%emt 0:00:49]} Na6 {[%emt 0:14:58]} 11. a3 {[%emt 0:04:30]} Be7 {[%emt 0:01:13]} 12. O-O {[%emt 1:15:26]} Nc7 {[%emt 0:03:39]} 13. f3 {[%emt 0:06:39]} *

[Event "French-ch U16-U18 2024"]
[Site "Agen"]
[Date "2024.04.14"]
[Round "1.11"]
[White "Diez, Agathe"]
[Black "Beil, Romane"]
[Result "1-0"]
[ECO "B01"]
[WhiteElo "1954"]
[BlackElo "1652"]
[Annotator "TA"]
[PlyCount "125"]
[EventDate "2024.04.14"]
[EventType "swiss"]
[EventCountry "FRA"]
[SourceTitle "playchess.com"]
[Source "ChessBase"]
[SourceQuality "1"]
[TimeControl "5400+30"]

{[%evp 9,125,46,51,50,60,37,18,21,48,34,58,16,25,-44,57,6,4,0,-3,-19,29,-10,19,18,26,17,100,98,120,99,179,162,182,170,177,165,183,142,242,140,149,14,299,292,447,217,233,233,258,197,503,322,249,220,256,264,246,79,70,80,107,35,118,117,125,117,144,129,135,102,155,155,213,155,293,276,265,131,168,157,160,134,149,147,179,175,477,498,460,334,535,552,562,565,633,619,715,711,29968,694,29947,7054,29989,29990,29988,29989,29989,29990,29990,29991,29991,29990,29990,29991,29997,29998,29998,29999]} 1. e4 {[%emt 0:00:04][%cal Be2e4,Be4d5][%mdl 32]} d5 {[%emt 0:00:03]} 2. exd5 {[%emt 0:00:09]} Nf6 {[%emt 0:00:07]} 3. Bb5+ {[%emt 0:00:49]} Nbd7 {[%emt 0:00:07][%cal Bb8d7,Bd7b6,Bb6d5,Bd5c3][%mdl 32]} 4. Nc3 {[%emt 0:00:34]} a6 {[%emt 0:01:02]} 5. Be2 {[%emt 0:03:01]} Nb6 {[%emt 0:02:31]} 6. Nf3 {[%emt 0:05:09]} Nbxd5 {[%emt 0:01:45]} 7. d4 {[%emt 0:05:32]} Nxc3 {[%emt 0:04:06]} 8. bxc3 {[%emt 0:00:21] The position is equal.} g6 {[%emt 0:00:39][%cal Oc7c5]} 9. Ne5 {[%emt 0:07:02]} Be6 {[%emt 0:11:34]} 10. c4 {[%emt 0:05:22]} Bg7 {[%emt 0:01:42][%cal Oc7c5]} 11. Rb1 {[%emt 0:08:01]} (11. Bf4 $11) 11... Rb8 {[%emt 0:17:15]} (11... Ne4 $1 $15 12. Qd3 (12. Rxb7 Bxe5 13. dxe5 Qxd1+ 14. Bxd1 O-O-O $17) 12... Bf5) 12. Bb2 {[%emt 0:08:48]} (12. d5 $14 Ne4 13. Bb2) 12... O-O $11 {[%emt 0:01:59]} 13. O-O {[%emt 0:02:20]} Nd7 {[%emt 0:05:47]} 14. f4 {[%emt 0:09:40][%cal Bf2f4,Bf4f5][%mdl 32]} f6 {[%emt 0:03:14]} (14... Nxe5 {should be considered.} 15. fxe5 c6) 15. Ng4 {[%emt 0:02:01]} Nb6 {[%emt 0:15:14]} 16. Ne3 {[%emt 0:01:52]} Bf7 {[%emt 0:04:18]} 17. f5 {[%emt 0:10:17]} g5 {[%emt 0:05:52]} (17... Na4 $11 {keeps the balance.}) 18. Ba3 {[%emt 0:09:15]} Qd7 {[%emt 0:03:27]} 19. d5 {[%emt 0:06:32]} Rbd8 {[%emt 0:08:16]} (19... Na4 $16 {keeps fighting.}) 20. Bf3 {[%emt 0:01:16]} Rfe8 {[%emt 0:01:53]} 21. Qd3 {[%emt 0:02:27]} h5 {[%emt 0:03:16]} 22. h3 {[%emt 0:02:07]} Bh6 {[%emt 0:01:23][%cal Og5g4]} 23. Rfe1 {[%emt 0:03:13]} Kh7 {[%emt 0:01:14]} (23... Qa4 $16 24. c5 Nd7) 24. c3 {[%emt 0:02:46]} ({White should try} 24. Rb3 $18) 24... Qa4 $16 {[%emt 0:01:47]} 25. Bc5 {[%emt 0:01:28]} (25. Bb4 $16) 25... Qa5 $2 {[%emt 0:00:40][%mdl 8192]} (25... Nd7 $11 {and Black stays safe.} 26. Bd4 c5) 26. Bd4 $18 {[%emt 0:01:24]} Rg8 {[%emt 0:02:31]} (26... Na4 $142 27. Rxb7 Kg7) 27. Qe4 {[%emt 0:01:15]} (27. c5 $142 g4 28. hxg4) 27... Rge8 {[%emt 0:00:19]} 28. g4 {[%emt 0:00:25]} h4 {[%emt 0:00:12]} 29. Re2 {[%emt 0:00:45]} Rb8 $2 {[%emt 0:01:15]} (29... Na4) 30. Reb2 {[%emt 0:00:24]} Na4 {[%emt 0:00:37]} 31. Rb3 {[%emt 0:00:48]} Nc5 {[%emt 0:00:57]} 32. Bxc5 {[%emt 0:00:05]} Qxc5 {[%emt 0:00:04]} 33. Kg2 $2 {[%emt 0:00:08]} (33. Rxb7 $18 Rxb7 34. Rxb7) 33... b6 {[%emt 0:00:07]} 34. Nc2 {[%emt 0:00:31]} a5 {[%emt 0:00:21]} 35. Qd3 {[%emt 0:00:27]} (35. Qd4 $16 {And now Qxc5 would win.} Qd6 36. Qf2) 35... Rbd8 {[%emt 0:00:24]} (35... c6 $1 $14) 36. Nd4 $16 {[%emt 0:00:13]} Qd6 {[%emt 0:00:48]} 37. Be4 {[%emt 0:00:25] Active counter play!} Qf4 {[%emt 0:02:14]} 38. Rf1 {[%emt 0:00:14]} Qd6 {[%emt 0:00:00]} 39. Ne6 {[%emt 0:01:19]} Bxe6 {[%emt 0:00:00]} (39... Ra8 $142 40. Rbb1 a4) 40. fxe6+ {[%emt 0:00:05]} Kg7 {[%emt 0:00:00] Black is weak on the light squares} (40... Kh8 $16 41. Qe3 Rg8) 41. Rf3 {[%emt 0:00:19] [#] Black must now prevent Bh7.} Rg8 {[%emt 0:00:00]} (41... f5 $16) 42. Bh7 $18 {[%emt 0:00:20] White wants to mate with Qg6+.} Kh8 {[%emt 0:01:09]} 43. Bg6 {[%emt 0:00:50]} (43. Bxg8 $18 {is more deadly.} Kxg8 44. Qe3) 43... Rdf8 {[%emt 0:00:49]} 44. Bf5 {[%emt 0:00:24]} Rd8 {[%emt 0:00:16]} 45. Qd4 {[%emt 0:00:27]} Rdf8 {[%emt 0:00:18]} 46. Rb5 {[%emt 0:00:12]} Rc8 {[%emt 0:00:36]} 47. c5 {[%emt 0:01:35]} Qd8 {[%emt 0:01:04]} (47... bxc5 48. Qxc5 (48. Rxc5 a4 $18) 48... Rgd8) 48. cxb6 {[%emt 0:00:31]} cxb6 {[%emt 0:00:06]} 49. Qxb6 {[%emt 0:00:49]} ({Don't do} 49. Rxb6 Rc4 50. Qxc4 Qxb6) 49... Qe8 $2 {[%emt 0:00:29]} (49... Qxb6 {is a better defense.} 50. Rxb6 Rge8) 50. Qxa5 {[%emt 0:00:52]} Ra8 {[%emt 0:00:08]} 51. Qb4 {[%emt 0:00:06]} Rxa2+ {[%emt 0:00:14]} 52. Rf2 {[%emt 0:00:03]} Rxf2+ {[%emt 0:01:03]} 53. Kxf2 {[%emt 0:00:05][%cal Bg2f2,Bf2e2,Be2d3,Bd3d4,Bd4c5,Bc5c6][%mdl 32]} Qa8 {[%emt 0:00:17] Repels Rb7} 54. Ra5 {[%emt 0:00:51]} (54. Qxe7 $142 Bg7 55. Qf7 Qe8 56. Qxe8 Rxe8 57. e7 Rxe7 58. Rb8+ Bf8 59. Rxf8+ Kg7 60. Rc8) 54... Qc8 {[%emt 0:00:15]} 55. Qxe7 {[%emt 0:00:37][%csl Gf5][%cal Re7h7] [#]} Rg7 {[%emt 0:00:20]} 56. Qxf6 {[%emt 0:00:25] White mates.} Qb8 {[%emt 0:00:42]} 57. e7 {[%emt 0:01:21]} Qf4+ {[%emt 0:00:26]} 58. Ke2 {[%emt 0:00:10][%cal Re7e8]} Qh2+ {[%emt 0:01:04]} 59. Kd3 {[%emt 0:00:37][%cal Re7e8]} Qg3+ {[%emt 0:00:41]} 60. Kd4 {[%emt 0:00:13][%cal Re7e8]} Qf4+ {[%emt 0:00:52]} 61. Kc5 {[%emt 0:00:40][%cal Re7e8]} Qe3+ {[%emt 0:00:34]} 62. Kc6 {[%emt 0:00:21][%cal Ra5a8]} Qxe7 {[%emt 0:00:33]} 63. Ra8+ {[%emt 0:00:05] Weighted Error Value: White=0.45/Black=0.77.  Loses game:     	---       	Black=1      Missed win:     	White=1     	---        Mistake:       	White=7     	Black=13     Inaccurate:     	White=3     	Black=3      OK:         	White=13    	Black=8} 1-0